bitfinex-derivatives/quotes_BTCF0:USTF0_20250426
["timestamp","ask_amount","ask_price","bid_price","bid_amount"]
[1745706263616,0.6921978,94658.0,94657.0,0.57207286]
[1745706264912,0.6921978,94658.0,94657.0,0.36087246]
[1745706266116,0.6921978,94658.0,94657.0,0.57207286]
[1745706269918,0.6921978,94658.0,94657.0,0.25787246]
[1745706272026,0.6921978,94658.0,94657.0,0.15787246]
[1745706276831,0.7479978,94658.0,94657.0,0.15787246]
[1745706304248,0.6937978,94658.0,94657.0,0.15787246]
[1745706304636,0.5851982,94658.0,94657.0,0.36907286]
[1745706304842,0.3851982,94658.0,94657.0,0.46907286]
[1745706305144,0.2171982,94658.0,94657.0,0.52381919]
[1745706305341,0.2171982,94658.0,94657.0,0.62651919]
[1745706306339,0.2171982,94658.0,94657.0,0.57177286]
[1745706306546,0.2171982,94658.0,94657.0,0.92741686]
[1745706306547,0.006,94658.0,94657.0,0.92741686]
[1745706306847,0.006,94658.0,94657.0,0.73214948]
[1745706307241,0.006,94658.0,94657.0,0.74778198]
[1745706308444,0.006,94658.0,94657.0,0.69304936]
[1745706308745,0.2171982,94658.0,94657.0,0.74775811]
[1745706309337,0.2171982,94658.0,94657.0,0.69304936]
[1745706313949,0.2171982,94658.0,94657.0,0.7477176]
[1745706314857,0.2171982,94658.0,94657.0,0.75988936]
[1745706315052,0.2171982,94658.0,94657.0,0.65424536]
[1745706315660,0.2171982,94658.0,94657.0,0.65452105]
[1745706317457,0.2171982,94658.0,94657.0,0.65419472]
[1745706319555,0.2171982,94658.0,94657.0,0.63861286]
[1745706320148,0.2171982,94658.0,94657.0,0.99941286]
[1745706323655,0.2171982,94658.0,94657.0,0.67127246]
[1745706323857,0.2671982,94658.0,94657.0,0.22471246]
[1745706324061,0.2671982,94658.0,94657.0,0.15787246]
[1745706324255,0.5364982,94658.0,94657.0,0.15787246]
[1745706324662,0.4878982,94658.0,94657.0,0.15787246]
[1745706324855,0.4878982,94658.0,94657.0,0.66827246]
[1745706325057,0.4378982,94658.0,94657.0,0.66827246]
[1745706325359,0.2698982,94658.0,94657.0,0.66827246]
[1745706325858,0.2698982,94658.0,94657.0,0.87947286]
[1745706326059,0.4378982,94658.0,94657.0,0.87947286]
[1745706328166,0.2698982,94658.0,94657.0,0.87947286]
[1745706330867,0.2798982,94658.0,94657.0,0.87947286]
[1745706332163,0.4478982,94658.0,94657.0,0.87947286]
[1745706333067,0.2798982,94658.0,94657.0,0.87947286]
[1745706333865,0.2798982,94658.0,94657.0,0.94631286]
[1745706334166,0.4478982,94658.0,94657.0,0.94631286]
[1745706336469,0.4478982,94658.0,94657.0,1.00101279]
[1745706338870,0.4478982,94658.0,94657.0,1.04971279]
[1745706339863,0.4478982,94658.0,94657.0,0.99501286]
[1745706344378,0.4478982,94658.0,94657.0,0.92817286]
[1745706344580,0.4478982,94658.0,94657.0,0.99501286]
[1745706345874,0.4478982,94658.0,94657.0,0.51867246]
[1745706346065,0.4378982,94658.0,94657.0,0.15787246]
[1745706346270,0.6878982,94658.0,94657.0,0.15787246]
[1745706351167,0.7391982,94658.0,94657.0,0.15787246]
[1745706351975,1.12815393,94658.0,94657.0,0.15787246]
[1745706356273,0.61565573,94658.0,94657.0,0.36907286]
[1745706357078,0.83685393,94658.0,94657.0,0.47537286]
[1745706357479,0.83685393,94658.0,94657.0,0.26417246]
[1745706357876,0.4478982,94658.0,94657.0,0.26417246]
[1745706359380,0.4478982,94658.0,94657.0,0.22471246]
[1745706359777,0.4478982,94658.0,94657.0,0.15787246]
[1745706360084,0.5011982,94658.0,94657.0,0.15787246]
[1745706360285,0.5011982,94658.0,94657.0,0.26117246]
[1745706361180,0.4478982,94658.0,94657.0,0.26117246]
[1745706361380,0.4478982,94658.0,94657.0,0.47237286]
[1745706361578,0.3951982,94658.0,94657.0,0.57237286]
[1745706361973,0.3851982,94658.0,94657.0,0.57237286]
[1745706362183,0.2171982,94658.0,94657.0,0.57237286]
[1745706365190,0.2171982,94658.0,94657.0,0.36117246]
[1745706365589,0.2271982,94658.0,94657.0,0.36117246]
[1745706365980,0.2271982,94658.0,94657.0,0.57237286]
[1745706366181,0.3951982,94658.0,94657.0,0.57237286]
[1745706367088,0.2271982,94658.0,94657.0,0.57237286]
[1745706368181,0.3951982,94658.0,94657.0,0.57237286]
[1745706374699,0.3951982,94658.0,94657.0,0.36117246]
[1745706374902,0.3951982,94658.0,94657.0,0.53921286]
[1745706377801,0.3951982,94658.0,94657.0,0.32801246]
[1745706378802,0.3951982,94658.0,94657.0,0.53921286]
[1745706379403,0.3951982,94658.0,94657.0,0.32801246]
[1745706379700,0.3851982,94658.0,94657.0,0.22471246]
[1745706379904,0.7052982,94658.0,94657.0,0.22471246]
[1745706381290,1.09425393,94658.0,94657.0,0.22471246]
[1745706382993,1.14405393,94658.0,94657.0,0.22471246]
[1745706388103,1.14405393,94658.0,94657.0,0.15787246]
[1745706388297,0.0528038,94651.0,94648.0,0.06684]
[1745706388497,0.2112182,94649.0,94648.0,0.09684]
[1745706388698,0.4912182,94649.0,94648.0,0.09684]
[1745706388900,0.5960182,94649.0,94648.0,0.09684]
[1745706389100,0.7640182,94649.0,94648.0,0.1046251]
[1745706390006,1.2304742,94649.0,94648.0,0.0377851]
[1745706391509,1.2344742,94649.0,94648.0,0.0377851]
[1745706393009,1.62542993,94649.0,94648.0,0.0377851]
[1745706393510,1.62442993,94649.0,94648.0,0.0377851]
[1745706397097,1.51877393,94649.0,94648.0,0.0377851]
[1745706398405,1.62442993,94649.0,94648.0,0.0377851]
[1745706399109,1.51877393,94649.0,94648.0,0.0377851]
[1745706401505,1.15797393,94649.0,94648.0,0.0377851]
[1745706401704,1.51877393,94649.0,94648.0,0.0377851]
[1745706402113,1.15797393,94649.0,94648.0,0.0377851]
[1745706402305,1.51877393,94649.0,94648.0,0.0377851]
[1745706411510,1.51877393,94649.0,94648.0,0.0077851]
[1745706411822,0.2112473,94636.0,94635.0,0.0519]
[1745706412119,0.4612473,94636.0,94635.0,0.2519]
[1745706413119,0.6292473,94636.0,94635.0,0.25979186]
[1745706413320,0.6312473,94636.0,94635.0,0.25979186]
[1745706416415,1.02020303,94636.0,94635.0,0.25979186]
[1745706426824,0.79020303,94636.0,94635.0,0.25979186]
[1745706427223,0.62220303,94636.0,94635.0,0.36545986]
[1745706427530,0.0528111,94638.0,94635.0,0.36545986]
[1745706427531,0.2112473,94640.0,94639.0,0.2640388]
[1745706427729,0.2112473,94640.0,94639.0,0.8176474]
[1745706428118,0.2112473,94640.0,94639.0,0.9328385]
[1745706428326,0.2312473,94640.0,94639.0,0.308]
[1745706428519,0.5012473,94640.0,94639.0,0.308]
[1745706429027,0.5042473,94640.0,94639.0,0.308]
[1745706429231,0.6722473,94640.0,94639.0,0.14]
[1745706429426,0.6722473,94640.0,94639.0,0.4569046]
[1745706429626,0.0889,94640.0,94639.0,0.51163248]
[1745706429834,0.0889,94640.0,94639.0,0.61163248]
[1745706430137,0.2112381,94641.0,94640.0,0.2112383]
[1745706430327,0.2112381,94641.0,94640.0,0.45666618]
[1745706430523,0.2112381,94641.0,94640.0,0.50716618]
[1745706430727,0.2112381,94641.0,94640.0,0.57780618]
[1745706431436,0.681938,94644.0,94643.0,0.2112316]
[1745706431628,0.681938,94644.0,94643.0,0.3712316]
[1745706431831,0.4179,94644.0,94643.0,0.4768916]
[1745706432133,0.6491294,94644.0,94643.0,0.53366]
[1745706432331,0.6491294,94644.0,94643.0,0.6448916]
[1745706432727,0.6501294,94644.0,94643.0,0.6448916]
[1745706433634,0.6501294,94644.0,94643.0,0.69958645]
[1745706433937,0.6501294,94644.0,94643.0,0.6448916]
[1745706434137,0.2322294,94644.0,94643.0,0.6448916]
[1745706435032,0.2322294,94644.0,94643.0,0.5392316]
[1745706437535,0.2322294,94644.0,94643.0,0.328]
[1745706438345,0.2322294,94644.0,94643.0,0.16]
[1745706438535,0.2322294,94644.0,94643.0,0.23776]
[1745706439031,0.2841294,94644.0,94643.0,0.23776]
[1745706440826,0.2841294,94644.0,94643.0,0.4489916]
[1745706441033,0.2841294,94644.0,94643.0,0.23776]
[1745706441235,0.2841294,94644.0,94643.0,0.4489916]
[1745706441433,0.2322294,94644.0,94643.0,0.4489916]
[1745706441625,0.021,94644.0,94643.0,0.4489916]
[1745706441830,0.2112219,94652.0,94651.0,0.2640062]
[1745706442032,0.2412219,94652.0,94651.0,0.3940062]
[1745706442527,0.2412219,94652.0,94651.0,0.5495062]
[1745706443032,0.2412219,94652.0,94651.0,0.4967037]
[1745706444133,0.0528015,94655.0,94654.0,0.2640012]
[1745706444325,0.2740063,94655.0,94654.0,0.4424012]
[1745706444526,0.2740063,94655.0,94654.0,0.4393004]
[1745706445326,0.2770063,94655.0,94654.0,0.4393004]
[1745706446740,0.2242048,94655.0,94654.0,0.4393004]
[1745706446940,0.2242048,94655.0,94654.0,0.5393004]
[1745706448534,0.013,94655.0,94654.0,0.5393004]
[1745706448734,0.2142048,94655.0,94654.0,0.5393004]
[1745706449135,0.2142048,94655.0,94654.0,0.7073004]
[1745706450140,0.2142048,94655.0,94654.0,0.5393004]
[1745706454438,1e-08,94661.0,94660.0,0.2111937]
[1745706454640,1e-08,94661.0,94660.0,0.4411937]
[1745706455345,1e-08,94661.0,94660.0,0.5934937]
[1745706455545,0.00400001,94661.0,94660.0,0.5934937]
[1745706455747,0.21519151,94661.0,94660.0,0.5934937]
[1745706456845,0.21519151,94661.0,94660.0,0.60406868]
[1745706458538,0.21519151,94661.0,94660.0,0.5934937]
[1745706458744,0.21519151,94661.0,94660.0,0.5404937]
[1745706458947,0.22519151,94661.0,94660.0,0.5404937]
[1745706462848,0.22519151,94661.0,94660.0,0.6174537]
[1745706467957,0.01400001,94661.0,94660.0,0.6174537]
[1745706468250,0.0052,94668.0,94667.0,0.2111781]
[1745706468459,0.0052,94668.0,94667.0,0.4611781]
[1745706468642,0.2163758,94668.0,94667.0,0.4611781]
[1745706468845,0.0052,94668.0,94667.0,0.8219781]
[1745706469057,0.0052,94668.0,94667.0,0.87659375]
[1745706475462,0.0052,94668.0,94667.0,0.8219781]
[1745706479366,0.058,94668.0,94667.0,0.8219781]
[1745706479754,0.2691758,94668.0,94667.0,0.8219781]
[1745706480162,0.058,94668.0,94667.0,0.8219781]
[1745706480364,0.0052,94668.0,94667.0,0.8219781]
[1745706481568,0.0052,94668.0,94667.0,0.8766032]
[1745706483764,0.2163758,94668.0,94667.0,0.8766032]
[1745706486055,0.4447758,94668.0,94667.0,0.8219781]
[1745706486362,0.4447758,94668.0,94667.0,0.8989381]
[1745706490875,0.4447758,94668.0,94667.0,0.95358952]
[1745706491271,0.4447758,94668.0,94667.0,0.8989381]
[1745706492169,0.4447758,94668.0,94667.0,0.95359093]
[1745706493269,0.4447758,94668.0,94667.0,0.59279093]
[1745706493460,0.4447758,94668.0,94667.0,0.95359093]
[1745706493776,0.4447758,94668.0,94667.0,0.8989381]
[1745706498172,0.0152,94668.0,94667.0,0.8989381]
[1745706498574,0.0052,94668.0,94667.0,0.95361574]
[1745706499573,0.2163758,94668.0,94667.0,0.95361574]
[1745706499777,0.2163758,94668.0,94667.0,0.8989381]
[1745706500068,0.3843758,94668.0,94667.0,0.8989381]
[1745706501274,0.2163758,94668.0,94667.0,0.8989381]
[1745706502175,0.3843758,94668.0,94667.0,0.5381381]
[1745706502376,0.3843758,94668.0,94667.0,0.8989381]
[1745706505276,0.3843758,94668.0,94667.0,0.95365837]
[1745706508778,0.1732,94668.0,94667.0,0.95365837]
[1745706509777,0.3843758,94668.0,94667.0,0.95365837]
[1745706515378,0.3843758,94668.0,94667.0,0.66552027]
[1745706515567,0.6745758,94668.0,94667.0,0.58492]
[1745706516274,0.4445758,94668.0,94667.0,0.7960981]
[1745706517378,0.4445758,94668.0,94667.0,0.8441981]
[1745706517982,0.4445758,94668.0,94667.0,0.4833981]
[1745706518878,0.4445758,94668.0,94667.0,0.53813783]
[1745706519879,0.4445758,94668.0,94667.0,0.4833981]
[1745706521279,0.1832,94668.0,94667.0,0.4833981]
[1745706521578,0.1732,94668.0,94667.0,0.63814022]
[1745706522180,0.0052,94668.0,94667.0,0.68874022]
[1745706525071,0.0052,94668.0,94667.0,1.04954022]
[1745706533176,1e-08,94668.0,94667.0,1.04954022]
[1745706540691,1e-08,94668.0,94667.0,0.9947981]
[1745706540997,1e-08,94668.0,94667.0,0.9925581]
[1745706542496,1e-08,94668.0,94667.0,1.04726768]
[1745706543097,1e-08,94668.0,94667.0,0.9925581]
[1745706544193,0.16800001,94668.0,94667.0,0.9925581]
[1745706545799,0.11800001,94668.0,94667.0,0.9925581]
[1745706546100,0.11800001,94668.0,94667.0,0.6317581]
[1745706546295,0.11800001,94668.0,94667.0,0.9925581]
[1745706547102,0.1512,94670.0,94669.0,0.2111736]
[1745706547302,0.1512,94670.0,94669.0,0.3611736]
[1745706547503,0.1512,94670.0,94669.0,0.7219736]
[1745706548203,0.3192,94670.0,94669.0,0.7219736]
[1745706548806,0.3192,94670.0,94669.0,0.77669443]
[1745706549805,0.5403714,94670.0,94669.0,0.7219736]
[1745706550706,0.5403714,94670.0,94669.0,0.7938136]
[1745706551113,0.3292,94670.0,94669.0,0.7938136]
[1745706551515,0.5403714,94670.0,94669.0,0.7938136]
[1745706551817,0.5303714,94670.0,94669.0,0.8459136]
[1745706552015,0.5303714,94670.0,94669.0,0.90064118]
[1745706553019,0.5303714,94670.0,94669.0,0.53984118]
[1745706553222,0.5303714,94670.0,94669.0,0.90064118]
[1745706553415,0.5303714,94670.0,94669.0,0.53984118]
[1745706553816,0.3192,94670.0,94669.0,0.90064118]
[1745706554319,0.2699,94670.0,94669.0,0.90064118]
[1745706555111,0.1019,94670.0,94669.0,0.90064118]
[1745706556315,0.2699,94670.0,94669.0,0.90064118]
[1745706557120,0.2699,94670.0,94669.0,0.53984118]
[1745706557313,0.2699,94670.0,94669.0,0.90064118]
[1745706557513,0.2699,94670.0,94669.0,0.53984118]
[1745706557713,0.2699,94670.0,94669.0,0.90064118]
[1745706558218,0.2699,94670.0,94669.0,1.06098438]
[1745706560008,0.3225,94670.0,94669.0,1.06098438]
[1745706560212,0.5336714,94670.0,94669.0,1.06098438]
[1745706561519,0.3225,94670.0,94669.0,0.90064118]
[1745706562319,0.5336714,94670.0,94669.0,0.90064118]
[1745706562519,0.3225,94670.0,94669.0,0.90064118]
[1745706562719,0.3225,94670.0,94669.0,0.94984118]
[1745706563118,0.3225,94670.0,94669.0,0.58904118]
[1745706563321,0.3225,94670.0,94669.0,0.94984118]
[1745706565913,0.3225,94670.0,94669.0,1.11018438]
[1745706569624,0.3225,94670.0,94669.0,0.94984118]
[1745706571021,0.5336714,94670.0,94669.0,0.94984118]
[1745706572421,0.5336714,94670.0,94669.0,0.94824118]
[1745706573524,0.5336714,94670.0,94669.0,0.84694118]
[1745706574624,0.5336714,94670.0,94669.0,0.95204118]
[1745706574824,0.3225,94670.0,94669.0,0.95204118]
[1745706576020,0.5336714,94670.0,94669.0,0.95204118]
[1745706577118,0.5436714,94670.0,94669.0,0.63576758]
[1745706577313,0.5436714,94670.0,94669.0,0.56552758]
[1745706577522,0.5436714,94670.0,94669.0,0.63576758]
[1745706578823,0.5436714,94670.0,94669.0,0.84694118]
[1745706580023,0.5436714,94670.0,94669.0,0.63576758]
[1745706581025,0.5436714,94670.0,94669.0,0.84694118]
[1745706583431,0.5436714,94670.0,94669.0,0.48614118]
[1745706583626,0.5436714,94670.0,94669.0,0.84694118]
[1745706584530,0.5436714,94670.0,94669.0,0.48614118]
[1745706584731,0.5436714,94670.0,94669.0,0.84694118]
[1745706586337,0.5436714,94670.0,94669.0,0.7922136]
[1745706588432,0.5436714,94670.0,94669.0,0.4314136]
[1745706588639,0.5436714,94670.0,94669.0,0.7922136]
[1745706589538,0.5436714,94670.0,94669.0,0.84694168]
[1745706591237,0.5436714,94670.0,94669.0,0.89864168]
[1745706591937,0.2799,94670.0,94669.0,0.8439136]
[1745706592235,0.168,94670.0,94669.0,0.99863461]
[1745706592436,0.168,94670.0,94669.0,0.9940136]
[1745706593238,0.2111658,94673.0,94672.0,0.2111669]
[1745706593439,0.2111658,94673.0,94672.0,0.3611669]
[1745706594139,0.2111658,94673.0,94672.0,0.4134669]
[1745706596448,0.2111658,94673.0,94672.0,0.46818591]
[1745706598442,0.2211658,94673.0,94672.0,0.25701901]
[1745706598847,0.2211658,94673.0,94672.0,0.53758591]
[1745706599237,0.4442658,94673.0,94672.0,0.53758591]
[1745706599443,0.4442658,94673.0,94672.0,0.27411901]
[1745706599839,0.4442658,94673.0,94672.0,0.2194]
[1745706600748,0.4442658,94673.0,94672.0,0.15]
[1745706600949,0.4442658,94673.0,94672.0,0.2194]
[1745706601839,0.4442658,94673.0,94672.0,0.2695]
[1745706602645,0.4442658,94673.0,94672.0,0.4806669]
[1745706603644,0.4442658,94673.0,94672.0,0.4112669]
[1745706603839,0.4442658,94673.0,94672.0,0.4806669]
[1745706605841,0.4442658,94673.0,94672.0,0.53539088]
[1745706607545,0.4442658,94673.0,94672.0,0.4806669]
[1745706615955,0.4442658,94673.0,94672.0,0.2695]
[1745706616460,0.4442658,94673.0,94672.0,0.4806669]
[1745706616759,0.4442658,94673.0,94672.0,0.5361669]
[1745706619350,0.4442658,94673.0,94672.0,0.325]
[1745706620753,0.4442658,94673.0,94672.0,0.5361669]
[1745706621950,0.4442647,94673.0,94672.0,0.5361669]
[1745706622167,0.2762647,94673.0,94672.0,0.5361669]
[1745706623058,0.4442647,94673.0,94672.0,0.5361669]
[1745706624259,0.4442647,94673.0,94672.0,0.59090795]
[1745706633566,0.4442647,94673.0,94672.0,0.95170795]
[1745706633863,0.4442647,94673.0,94672.0,0.59090795]
[1745706634063,0.4442647,94673.0,94672.0,0.95170795]
[1745706635057,0.4342647,94673.0,94672.0,0.95170795]
[1745706638066,0.2662647,94673.0,94672.0,0.59090795]
[1745706638269,0.2762647,94673.0,94672.0,0.95170795]
[1745706640160,0.4442647,94673.0,94672.0,0.95170795]
[1745706641973,0.4442647,94673.0,94672.0,0.59090795]
[1745706642183,0.2331,94673.0,94672.0,0.95170795]
[1745706642471,0.178,94673.0,94672.0,1.05170795]
[1745706642674,0.168,94673.0,94672.0,1.05170795]
[1745706643175,0.00049,94681.0,94680.0,0.2111491]
[1745706643477,0.00049,94681.0,94680.0,0.92489015]
[1745706643663,0.2111468,94681.0,94680.0,0.97767725]
[1745706643868,0.2211468,94681.0,94680.0,0.76764105]
[1745706644067,0.3891468,94681.0,94680.0,0.97879015]
[1745706644273,0.3891468,94681.0,94680.0,0.9240491]
[1745706644476,0.4429468,94681.0,94680.0,0.9240491]
[1745706645376,0.4429468,94681.0,94680.0,0.9380491]
[1745706645875,0.4429468,94681.0,94680.0,0.5772491]
[1745706652279,0.442968,94681.0,94680.0,0.5772491]
[1745706655783,0.442968,94681.0,94680.0,0.4772491]
[1745706658575,0.496868,94681.0,94680.0,0.4772491]
[1745706658882,0.496868,94681.0,94680.0,0.2661]
[1745706660382,0.496868,94681.0,94680.0,0.4772702]
[1745706665884,0.776868,94681.0,94680.0,0.144]
[1745706666083,0.776868,94681.0,94671.0,0.0542]
[1745706666084,0.211188,94672.0,94671.0,0.0542]
[1745706666287,0.501188,94672.0,94671.0,0.2367498]
[1745706666484,0.501188,94672.0,94671.0,0.3932303]
[1745706666888,0.608588,94672.0,94671.0,0.3932303]
[1745706667195,0.608588,94672.0,94671.0,0.18204]
[1745706667390,0.608588,94672.0,94671.0,0.14434]
[1745706667592,0.608588,94672.0,94671.0,0.12784]
[1745706667985,0.608588,94672.0,94671.0,0.3390303]
[1745706668183,0.776588,94672.0,94671.0,0.3390303]
[1745706668382,0.776588,94672.0,94671.0,0.2711903]
[1745706668690,0.776588,94672.0,94671.0,0.3390303]
[1745706668987,0.776588,94672.0,94671.0,0.39373039]
[1745706669491,0.776588,94672.0,94671.0,0.3390303]
[1745706669991,0.776588,94672.0,94671.0,0.39372988]
[1745706670583,0.776588,94672.0,94671.0,0.44382988]
[1745706671491,0.776588,94672.0,94671.0,0.37598988]
[1745706671694,0.776588,94672.0,94671.0,0.44382988]
[1745706671893,0.776588,94672.0,94671.0,0.3891303]
[1745706673595,0.722788,94672.0,94671.0,0.3891303]
[1745706676095,0.554788,94672.0,94671.0,0.3891303]
[1745706676995,0.1136,94672.0,94671.0,0.3891303]
[1745706677198,0.1136,94672.0,94671.0,0.44382345]
[1745706678899,0.324788,94672.0,94671.0,0.44382345]
[1745706679700,0.324788,94672.0,94671.0,0.3891303]
[1745706681599,0.324788,94672.0,94671.0,0.3212903]
[1745706681797,0.324788,94672.0,94671.0,0.3886903]
[1745706682899,0.324788,94672.0,94671.0,0.44338696]
[1745706685300,0.492788,94672.0,94671.0,0.44338696]
[1745706685499,0.492788,94672.0,94671.0,0.3886903]
[1745706686196,0.324788,94672.0,94671.0,0.3886903]
[1745706687300,0.324788,94672.0,94671.0,0.44338926]
[1745706690104,0.492788,94672.0,94671.0,0.44338926]
[1745706693506,0.492788,94672.0,94671.0,0.3886903]
[1745706693705,0.672788,94672.0,94671.0,0.06]
[1745706693905,0.672788,94672.0,94671.0,0.1274]
[1745706694107,0.672788,94672.0,94671.0,0.06]
[1745706694597,1.033588,94672.0,94671.0,0.06]
[1745706695705,1.084288,94672.0,94671.0,0.06]
[1745706695898,1.084288,94672.0,94671.0,0.2711903]
[1745706697110,1.084288,94672.0,94671.0,0.06]
[1745706699007,1.445088,94672.0,94671.0,0.06]
[1745706707919,0.0528014,94665.0,94635.0,0.42150916]
[1745706708218,0.2112148,94660.0,94659.0,0.0674]
[1745706708417,0.2112148,94660.0,94659.0,0.1274]
[1745706708418,0.8948189,94660.0,94659.0,0.1274]
[1745706709016,1.0017189,94660.0,94659.0,0.1274]
[1745706709211,1.1697189,94660.0,94659.0,0.1274]
[1745706711115,1.1767189,94660.0,94659.0,0.1274]
[1745706712119,1.1767189,94660.0,94659.0,0.3386171]
[1745706712332,1.1228189,94660.0,94659.0,0.3386171]
[1745706712531,0.8058,94660.0,94659.0,0.3386171]
[1745706712831,0.4179,94664.0,94659.0,0.99765]
[1745706713128,0.08104612,94676.0,94675.0,0.2111814]
[1745706713325,0.08104612,94676.0,94675.0,0.4185414]
[1745706713526,0.08055612,94676.0,94675.0,0.6241654]
[1745706713933,0.08055612,94676.0,94675.0,0.7315654]
[1745706714231,0.09055612,94676.0,94675.0,0.9005654]
[1745706715037,0.09055612,94676.0,94675.0,0.7949414]
[1745706716032,0.09055612,94676.0,94675.0,0.84957742]
[1745706717232,0.01,94676.0,94675.0,0.84957742]
[1745706717733,0.01,94676.0,94675.0,0.7949414]
[1745706726150,0.01,94676.0,94675.0,0.6269414]
[1745706736654,0.03,94676.0,94675.0,0.6269414]
[1745706742657,0.03,94676.0,94675.0,0.5733414]
[1745706743954,0.03,94676.0,94675.0,0.30836]
[1745706744147,0.2211791,94676.0,94675.0,0.20836]
[1745706744352,0.4611791,94676.0,94675.0,0.20836]
[1745706745156,0.6291791,94676.0,94675.0,0.4195414]
[1745706746355,0.418,94676.0,94675.0,0.4195414]
[1745706746560,0.418,94676.0,94675.0,0.47422215]
[1745706746957,0.7822791,94676.0,94675.0,0.57182215]
[1745706748048,0.7822791,94676.0,94675.0,0.52302215]
[1745706749947,0.5711,94676.0,94675.0,0.52302215]
[1745706751962,0.7822791,94676.0,94675.0,0.52302215]
[1745706752861,0.5711,94676.0,94675.0,0.52302215]
[1745706757465,0.7822791,94676.0,94675.0,0.52302215]
[1745706758160,0.5711,94676.0,94675.0,0.52302215]
[1745706759762,0.7822791,94676.0,94675.0,0.52302215]
[1745706764361,0.5711,94676.0,94675.0,0.52302215]
[1745706764662,0.5214,94676.0,94675.0,0.52302215]
[1745706766660,0.2276,94676.0,94675.0,0.52302215]
[1745706766860,0.2376,94676.0,94675.0,0.62302215]
[1745706767060,0.2376,94676.0,94675.0,0.67592215]
[1745706767262,0.0696,94676.0,94675.0,0.67592215]
[1745706767963,0.0596,94676.0,94675.0,0.67592215]
[1745706771565,0.0596,94676.0,94675.0,0.72502215]
[1745706774168,0.2111359,94696.0,94683.0,0.0527904]
[1745706774356,0.0579826,94698.0,94688.0,0.2111524]
[1745706774357,0.0489,94689.0,94688.0,0.2111524]
[1745706774667,0.0489,94689.0,94688.0,0.91853315]
[1745706775368,0.0489,94689.0,94688.0,0.92853315]
[1745706775571,0.0013,94691.0,94690.0,0.2111479]
[1745706775869,0.0013,94691.0,94690.0,0.47314865]
[1745706776955,0.0013,94691.0,94690.0,0.49364866]
[1745706778471,0.0013,94691.0,94690.0,0.48364866]
[1745706779767,0.0013,94691.0,94690.0,0.64410421]
[1745706780268,0.0489,94697.0,94696.0,0.2111345]
[1745706780467,0.0789,94697.0,94696.0,0.3611345]
[1745706781267,0.2469,94697.0,94696.0,0.3611345]
[1745706781567,0.2469,94697.0,94696.0,0.3751345]
[1745706782162,0.0789,94697.0,94696.0,0.3751345]
[1745706786868,0.0789,94697.0,94696.0,0.4290345]
[1745706787177,0.2962,94697.0,94696.0,0.3751345]
[1745706787869,0.7073323,94697.0,94696.0,0.164]
[1745706788278,0.7073323,94697.0,94696.0,0.23132]
[1745706788666,1.0629323,94697.0,94696.0,0.23132]
[1745706789270,0.8129323,94697.0,94696.0,0.23132]
[1745706790569,0.8129323,94697.0,94696.0,0.4424545]
[1745706791564,0.8129323,94697.0,94696.0,0.23132]
[1745706791774,1.2308323,94697.0,94696.0,0.23132]
[1745706792375,1.2308323,94697.0,94696.0,0.4424545]
[1745706793081,1.1252323,94697.0,94696.0,0.4424545]
[1745706794980,1.1252323,94697.0,94696.0,0.23132]
[1745706796278,1.1252323,94697.0,94696.0,0.4424545]
[1745706797279,1.4860323,94697.0,94696.0,0.4424545]
[1745706799171,1.1252323,94697.0,94696.0,0.4424545]
[1745706799371,1.4860323,94697.0,94696.0,0.4424545]
[1745706799881,1.4860323,94697.0,94696.0,0.23132]
[1745706810382,1.1252323,94697.0,94696.0,0.23132]
[1745706810583,1.4860323,94697.0,94696.0,0.23132]
[1745706812682,1.4860323,94697.0,94696.0,0.28382]
[1745706813390,1.1252323,94697.0,94696.0,0.28382]
[1745706813591,1.4860323,94697.0,94696.0,0.28382]
[1745706814096,1.1252323,94697.0,94696.0,0.28382]
[1745706814292,1.4860323,94697.0,94696.0,0.28382]
[1745706818100,1.1252323,94697.0,94696.0,0.28382]
[1745706818299,1.4860323,94697.0,94696.0,0.28382]
[1745706820694,1.1252323,94697.0,94696.0,0.28382]
[1745706820895,1.4860323,94697.0,94696.0,0.28382]
[1745706821387,1.4860323,94697.0,94696.0,0.2165]
[1745706825088,1.1252323,94697.0,94696.0,0.2165]
[1745706825586,1.4860323,94697.0,94696.0,0.2165]
[1745706826695,1.56658842,94697.0,94696.0,0.2165]
[1745706829894,1.20578842,94697.0,94696.0,0.2165]
[1745706830095,1.56658842,94697.0,94696.0,0.2165]
[1745706832690,1.4860323,94697.0,94696.0,0.2165]
[1745706842998,1.56680976,94697.0,94696.0,0.2165]
[1745706844508,1.51750976,94697.0,94696.0,0.2165]
[1745706847107,1.15670976,94697.0,94696.0,0.2165]
[1745706847411,1.51750976,94697.0,94696.0,0.2165]
[1745706850804,1.0759323,94697.0,94696.0,0.2165]
[1745706851021,1.4367323,94697.0,94696.0,0.2165]
[1745706852006,1.4367323,94697.0,94696.0,0.164]
[1745706852213,1.4367323,94697.0,94659.0,0.3608]
[1745706852214,0.0527881,94688.0,94659.0,0.3608]
[1745706852412,0.932768,94681.0,94669.0,0.1059]
[1745706852712,1.192768,94681.0,94669.0,0.1059]
[1745706852909,0.2111814,94675.0,94674.0,0.22167565]
[1745706853109,0.4511814,94675.0,94674.0,0.22167565]
[1745706853809,0.5520814,94675.0,94674.0,0.22167565]
[1745706854202,0.5580814,94675.0,94674.0,0.22167565]
[1745706855217,0.5580814,94675.0,94662.0,0.2112092]
[1745706855218,0.2112104,94662.0,94644.0,0.21389005]
[1745706855511,0.2640077,94664.0,94663.0,0.0537]
[1745706855716,0.5040077,94664.0,94663.0,0.1037]
[1745706856015,0.6078077,94664.0,94663.0,0.1037]
[1745706857014,0.6078077,94664.0,94663.0,0.11153859]
[1745706857720,0.6118077,94664.0,94663.0,0.11153859]
[1745706863219,0.6118077,94664.0,94663.0,0.32274669]
[1745706863422,0.5582077,94664.0,94663.0,0.32274669]
[1745706865323,0.5080077,94664.0,94663.0,0.32274669]
[1745706865508,0.244,94664.0,94663.0,0.32274669]
[1745706866517,0.4552059,94664.0,94663.0,0.32274669]
[1745706873322,0.4552059,94664.0,94663.0,0.38994669]
[1745706874321,0.4552059,94664.0,94663.0,0.17873859]
[1745706875114,0.4552059,94664.0,94663.0,0.11153859]
[1745706875318,0.4552059,94664.0,94663.0,0.17873859]
[1745706875930,0.5380059,94664.0,94663.0,0.17873859]
[1745706877430,0.5380059,94664.0,94663.0,0.12503859]
[1745706878431,0.5380059,94664.0,94663.0,0.16703859]
[1745706878928,0.5380059,94664.0,94663.0,0.21073859]
[1745706879531,0.4967059,94664.0,94663.0,0.21073859]
[1745706882537,0.4967059,94664.0,94663.0,0.42194669]
[1745706886533,0.4967059,94664.0,94663.0,0.37994669]
[1745706888028,0.4967059,94664.0,94663.0,0.16873859]